fUSD/lending_fUSD_20250607
["ID","MTS","AMOUNT","RATE_DAILY","PERIOD"]
[364872512,1749283853227,-500.0,0.00027397,5]
[364872513,1749283853237,-516.95631481,0.00027397,5]
[364872514,1749283853247,-509.52110975,0.00027397,5]
[364872515,1749283853256,-480.0,0.00027397,5]
[364872516,1749283853267,-508.07734909,0.00027397,5]
[364872517,1749283853276,-1026.76,0.00027397,5]
[364872518,1749283853286,-391.51288326,0.00027397,5]
[364872519,1749283853296,-496.53576103,0.00027397,5]
[364872520,1749283853306,-480.0,0.00027397,5]
[364872521,1749283853317,-573.4,0.00027397,5]
[364872522,1749283853327,-873.46,0.00027397,5]
[364872523,1749283853336,-496.9125914,0.00027397,5]
[364872524,1749283853346,-480.0,0.00027397,5]
[364872525,1749283853356,-480.0,0.00027397,5]
[364872526,1749283853367,-533.28332078,0.00027397,5]
[364872527,1749283853377,-480.0,0.00027397,5]
[364872528,1749283853388,-498.96611695,0.00027397,5]
[364872529,1749283853398,-480.0,0.00027397,5]
[364872530,1749283853408,-480.0,0.00027397,5]
[364872531,1749283853418,-480.0,0.00027397,5]
[364872532,1749283853428,-500.0,0.00027397,5]
[364872533,1749283853438,-486.76359595,0.00027397,5]
[364872534,1749283853447,-500.0,0.00027397,5]
[364872535,1749283853458,-787.2,0.00027397,5]
[364872536,1749283853467,-500.0,0.00027397,5]
[364872537,1749283853478,-2102.121321,0.00027397,5]
[364872538,1749283853488,-515.22003817,0.00027397,5]
[364872539,1749283853498,-1212.38,0.00027397,5]
[364872540,1749283853509,-471.42011093,0.00027397,5]
[364872541,1749283853519,-480.0,0.00027397,5]
[364872542,1749283853529,-480.0,0.00027397,5]
[364872543,1749283853539,-480.61834349,0.00027397,5]
[364872544,1749283853549,-480.0,0.00027397,5]
[364872545,1749283853559,-480.0,0.00027397,5]
[364872546,1749283853569,-480.0,0.00027397,5]
[364872547,1749283853580,-480.0,0.00027397,5]
[364872548,1749283853590,-480.0,0.00027397,5]
[364872549,1749283853600,-480.0,0.00027397,5]
[364872550,1749283853610,-480.0,0.00027397,5]
[364872551,1749283853620,-499.74979819,0.00027397,5]
[364872552,1749283853630,-480.0,0.00027397,5]
[364872553,1749283853640,-536.21952107,0.00027397,5]
[364872554,1749283853649,-480.0,0.00027397,5]
[364872555,1749283853660,-480.0,0.00027397,5]
[364872556,1749283853671,-480.0,0.00027397,5]
[364872557,1749283853681,-480.0,0.00027397,5]
[364872558,1749283853691,-162.958385,0.00027397,5]
[364872559,1749283853702,-480.0,0.00027397,5]
[364872560,1749283853712,-480.0,0.00027397,5]
[364872561,1749283853722,-1174.57,0.00027397,5]
[364872562,1749283853731,-379.24589811,0.00027397,5]
[364872563,1749283853741,-482.35146621,0.00027397,5]
[364872564,1749283853750,-480.0,0.00027397,5]
[364872565,1749283853760,-480.0,0.00027397,5]
[364872566,1749283853769,-477.36890142,0.00027397,5]
[364872567,1749283853779,-480.0,0.00027397,5]
[364872568,1749283853788,-850.33,0.00027397,5]
[364872569,1749283853798,-554.27,0.00027397,5]
[364872570,1749283853807,-480.0,0.00027397,5]
[364872571,1749283853817,-480.0,0.00027397,5]
[364872572,1749283853826,-480.0,0.00027397,5]
[364872573,1749283853836,-480.0,0.00027397,5]
[364872574,1749283853846,-368.89279965,0.00027397,5]
[364872575,1749283853855,-500.0,0.00027397,5]
[364872576,1749283853865,-500.0,0.00027397,5]
[364872577,1749283853875,-500.0,0.00027397,5]
[364872578,1749283853885,-500.0,0.00027397,5]
[364872579,1749283853895,-500.0,0.00027397,5]
[364872580,1749283853907,-504.98593338,0.00027397,5]
[364872581,1749283853918,-737.61,0.00027397,5]
[364872582,1749283853928,-494.24,0.00027397,5]
[364872583,1749283853938,-480.0,0.00027397,5]
[364872584,1749283853948,-430.2542926,0.00027397,5]
[364872585,1749283854050,-484.40155999,0.00027397,5]
[364872586,1749283854060,-634.26,0.00027397,5]
[364872587,1749283854069,-835.68,0.00027397,5]
[364872588,1749283854078,-489.97644543,0.00027397,5]
[364872589,1749283854088,-420.42381241,0.00027397,5]
[364872590,1749283854098,-480.0,0.00027397,5]
[364872591,1749283854109,-478.32592417,0.00027397,5]
[364872592,1749283854118,-480.0,0.00027397,5]
[364872593,1749283854127,-768.49,0.00027397,5]
[364872594,1749283854136,-500.0,0.00027397,2]
[364872595,1749283854145,-1017.00083755,0.00027397,5]
[364872596,1749283854154,-480.0,0.00027397,5]
[364872597,1749283854165,-500.0,0.00027397,2]
[364872598,1749283854174,-500.0,0.00027397,2]
[364872599,1749283854183,-480.0,0.00027397,5]
[364872600,1749283854192,-500.0,0.00027397,2]
[364872601,1749283854202,-426.06823034,0.00027397,5]
[364872602,1749283854211,-500.0,0.00027397,2]
[364872603,1749283854220,-500.0,0.00027397,2]
[364872604,1749283854229,-480.0,0.00027397,5]
[364872605,1749283854239,-500.01491436,0.00027397,5]
[364872606,1749283854248,-480.0,0.00027397,5]
[364872607,1749283854257,-163.67194531,0.00027397,5]
[364872608,1749283854266,-501.16294386,0.00027397,5]
[364872609,1749283854275,-528.15,0.00027397,5]
[364872610,1749283854284,-480.0,0.00027397,5]
[364872611,1749283854293,-480.0,0.00027397,5]
[364872612,1749283854303,-1115.25,0.00027397,5]
[364872613,1749283854312,-450.37785265,0.00027397,5]
[364872614,1749283854325,-480.0,0.00027397,5]
[364872615,1749283854334,-495.53230249,0.00027397,5]
[364872616,1749283854343,-480.0,0.00027397,5]
[364872617,1749283854352,-487.93759293,0.00027397,5]
[364872618,1749283854362,-480.0,0.00027397,5]
[364872619,1749283854371,-480.0,0.00027397,5]
[364872620,1749283854381,-488.61625459,0.00027397,5]
[364872621,1749283854390,-2016.63,0.00027397,5]
[364872622,1749283854400,-424.14717833,0.00027397,5]
[364872623,1749283854410,-499.96805543,0.00027397,5]
[364872624,1749283854419,-480.0,0.00027397,5]
[364872625,1749283854429,-491.5708486,0.00027397,5]
[364872626,1749283854439,-480.0,0.00027397,5]
[364872627,1749283854448,-500.00740803,0.00027397,5]
[364872628,1749283854458,-485.39,0.00027397,5]
[364872629,1749283854467,-427.63098731,0.00027397,5]
[364872630,1749283854476,-480.0,0.00027397,5]
[364872631,1749283854486,-480.0,0.00027397,5]
[364872632,1749283854495,-480.0,0.00027397,5]
[364872633,1749283854504,-570.08323876,0.00027397,5]
[364872634,1749283854513,-480.0,0.00027397,5]
[364872635,1749283854522,-325.5077297,0.00027397,5]
[364872636,1749283854531,-480.0,0.00027397,5]
[364872637,1749283854540,-183.5396126,0.00027397,5]
[364872638,1749283854549,-480.0,0.00027397,5]
[364872639,1749283854558,-984.78,0.00027397,5]
[364872640,1749283854568,-491.67404145,0.00027397,5]
[364872641,1749283854577,-480.0,0.00027397,5]
[364872642,1749283854586,-500.0,0.00027397,5]
[364872643,1749283854595,-500.0,0.00027397,5]
[364872644,1749283854605,-500.0,0.00027397,5]
[364872645,1749283854615,-500.0,0.00027397,5]
[364872646,1749283854625,-180.27429648,0.00027397,5]
[364872647,1749283854636,-495.20755165,0.00027397,5]
[364872648,1749283854646,-480.0,0.00027397,5]
[364872649,1749283854656,-480.0,0.00027397,5]
[364872650,1749283854666,-480.0,0.00027397,5]
[364872651,1749283854675,-480.0,0.00027397,5]
[364872652,1749283854685,-480.0,0.00027397,5]
[364872653,1749283854694,-480.0,0.00027397,5]
[364872654,1749283854703,-956.19,0.00027397,5]
[364872655,1749283854712,-364.48152111,0.00027397,5]
[364872656,1749283854722,-492.93793836,0.00027397,5]
[364872657,1749283854731,-480.0,0.00027397,5]
[364872658,1749283854741,-501.50488483,0.00027397,5]
[364872659,1749283854750,-480.0,0.00027397,5]
[364872660,1749283854759,-601.8,0.00027397,5]
[364872661,1749283854769,-583.54533055,0.00027397,5]
[364872662,1749283854778,-798.33,0.00027397,5]
[364872663,1749283854788,-658.43,0.00027397,5]
[364872664,1749283854797,-424.48767831,0.00027397,5]
[364872665,1749283854807,-489.68581883,0.00027397,5]
[364872666,1749283854816,-480.0,0.00027397,5]
[364872667,1749283854827,-486.13879497,0.00027397,5]
[364872668,1749283854837,-484.70254304,0.00027397,5]
[364872669,1749283854848,-483.65729563,0.00027397,5]
[364872670,1749283854858,-984.27,0.00027397,5]
[364872671,1749283854868,-853.62,0.00027397,5]
[364872672,1749283854877,-480.0,0.00027397,5]
[364872673,1749283854886,-366.6385592,0.00027397,5]
[364872674,1749283854896,-480.0,0.00027397,5]
[364872675,1749283854906,-480.0,0.00027397,5]
[364872676,1749283854915,-480.0,0.00027397,5]
[364872677,1749283854925,-480.0,0.00027397,5]
[364872678,1749283854934,-179.05386841,0.00027397,5]
[364872679,1749283854945,-1719.89,0.00027397,5]
[364872680,1749283854954,-480.0,0.00027397,5]
[364872681,1749283854963,-493.54052618,0.00027397,5]
[364872682,1749283854973,-879.54,0.00027397,5]
[364872683,1749283854982,-990.87,0.00027397,5]
[364872684,1749283854991,-505.28717574,0.00027397,5]
[364872685,1749283855001,-480.0,0.00027397,5]
[364872686,1749283855011,-485.66827084,0.00027397,5]
[364872687,1749283855020,-508.9064521,0.00027397,5]
[364872688,1749283855030,-478.32202349,0.00027397,5]
[364872689,1749283855040,-769.25,0.00027397,5]
[364872690,1749283855049,-480.0,0.00027397,5]
[364872691,1749283855059,-480.0,0.00027397,5]
[364872692,1749283855068,-1000.0,0.00027397,5]
[364872693,1749283855077,-480.0,0.00027397,5]
[364872694,1749283855087,-480.0,0.00027397,5]
[364872695,1749283855097,-480.0,0.00027397,5]
[364872696,1749283855106,-340.58643146,0.00027397,5]
[364872697,1749283855116,-480.0,0.00027397,5]
[364872698,1749283855125,-619.63,0.00027397,5]
[364872699,1749283855134,-480.0,0.00027397,5]
[364872700,1749283855144,-480.0,0.00027397,5]
[364872701,1749283855154,-480.0,0.00027397,5]
[364872702,1749283855163,-495.27479184,0.00027397,5]
[364872703,1749283855174,-428.15364908,0.00027397,5]
[364872704,1749283855183,-248.05098619,0.00027397,5]
[364872705,1749283855193,-964.13,0.00027397,5]
[364872706,1749283855202,-480.0,0.00027397,5]
[364872707,1749283855211,-480.0,0.00027397,5]
[364872708,1749283855221,-488.30067448,0.00027397,5]
[364872709,1749283855230,-480.0,0.00027397,5]
[364872710,1749283855239,-482.95809485,0.00027397,5]
[364872711,1749283855248,-614.65,0.00027397,5]
[364872712,1749283855257,-480.0,0.00027397,5]
[364872713,1749283855266,-480.0,0.00027397,5]
[364872714,1749283855275,-480.0,0.00027397,5]
[364872715,1749283855285,-959.52,0.00027397,5]
[364872716,1749283855294,-620.08,0.00027397,5]
[364872717,1749283855304,-480.0,0.00027397,5]
[364872718,1749283855316,-469.52122212,0.00027397,5]
[364872719,1749283855328,-480.0,0.00027397,5]
[364872720,1749283855336,-480.0,0.00027397,5]
[364872721,1749283855346,-480.0,0.00027397,5]
[364872722,1749283855356,-480.0,0.00027397,5]
[364872723,1749283855366,-480.0,0.00027397,5]
[364872724,1749283855375,-505.40257588,0.00027397,5]
[364872725,1749283855384,-489.66624717,0.00027397,5]
[364872726,1749283855393,-481.61,0.00027397,5]
[364872727,1749283855404,-502.66103318,0.00027397,5]
[364872728,1749283855414,-607.29,0.00027397,5]
[364872729,1749283855423,-1150.03,0.00027397,5]
[364872730,1749283855434,-480.0,0.00027397,5]
[364872731,1749283855443,-480.0,0.00027397,5]
[364872732,1749283855452,-487.73958389,0.00027397,5]
[364872733,1749283855462,-647.25,0.00027397,5]
[364872734,1749283855472,-480.0,0.00027397,5]
[364872735,1749283855481,-1086.55,0.00027397,5]
[364872736,1749283855491,-480.0,0.00027397,5]
[364872737,1749283855501,-480.0,0.00027397,5]
[364872738,1749283855511,-480.0,0.00027397,5]
[364872739,1749283855521,-484.5590565,0.00027397,5]
[364872740,1749283855531,-1505.03,0.00027397,5]
[364872741,1749283855540,-1473.87,0.00027397,5]
[364872742,1749283855550,-480.0,0.00027397,5]
[364872743,1749283855560,-480.0,0.00027397,5]
[364872744,1749283855570,-7690.81,0.00027397,5]
[364872745,1749283855579,-480.0,0.00027397,5]
[364872746,1749283855589,-480.0,0.00027397,5]
[364872747,1749283855600,-480.0,0.00027397,2]
[364872748,1749283855610,-480.0,0.00027397,5]
[364872749,1749283855619,-480.0,0.00027397,5]
[364872750,1749283855629,-480.0,0.00027397,5]
[364872751,1749283855640,-480.0,0.00027397,5]
[364872752,1749283855650,-1206.45,0.00027397,5]
[364872753,1749283855659,-550.60390058,0.00027397,5]
[364872754,1749283855670,-480.0,0.00027397,5]
[364872755,1749283855680,-480.0,0.00027397,5]
[364872756,1749283855689,-480.0,0.00027397,5]
[364872757,1749283855699,-480.0,0.00027397,5]
[364872758,1749283855709,-480.0,0.00027397,5]
[364872759,1749283855719,-594.14,0.00027397,5]
[364872760,1749283855729,-480.0,0.00027397,5]
[364872761,1749283855738,-484.33104382,0.00027397,5]
[364872762,1749283855748,-656.54,0.00027397,5]
[364872763,1749283855757,-491.23809881,0.00027397,5]
[364872764,1749283855767,-665.13,0.00027397,5]
[364872765,1749283855777,-496.12803623,0.00027397,5]
[364872766,1749283855787,-480.0,0.00027397,5]
[364872767,1749283855796,-490.8626679,0.00027397,5]
[364872768,1749283855806,-509.24,0.00027397,5]
[364872769,1749283855815,-480.0,0.00027397,5]
[364872770,1749283855826,-480.0,0.00027397,5]
[364872771,1749283855835,-480.0,0.00027397,5]
[364872772,1749283855845,-867.98,0.00027397,5]
[364872773,1749283855855,-835.03,0.00027397,5]
[364872774,1749283855865,-1091.22,0.00027397,5]
[364872775,1749283855875,-480.0,0.00027397,5]
[364872776,1749283855884,-788.44,0.00027397,5]
[364872777,1749283855895,-488.42832724,0.00027397,5]
[364872778,1749283855905,-466.81533169,0.00027397,5]
[364872779,1749283855915,-480.0,0.00027397,5]
[364872780,1749283855923,-480.0,0.00027397,5]
[364872781,1749283855933,-480.0,0.00027397,5]
[364872782,1749283855943,-2181.17,0.00027397,5]
[364872783,1749283855952,-480.0,0.00027397,5]
[364872784,1749283855962,-675.89,0.00027397,5]
[364872785,1749283855972,-1257.45,0.00027397,5]
[364872786,1749283855981,-1342.98,0.00027397,5]
[364872787,1749283855991,-450.91416255,0.00027397,5]
[364872788,1749283856001,-480.0,0.00027397,5]
[364872789,1749283856010,-480.0,0.00027397,5]
[364872790,1749283856019,-5948.08,0.00027397,5]
[364872791,1749283856034,-748.21,0.00027397,5]
[364872792,1749283856044,-483.6911322,0.00027397,5]
[364872793,1749283856053,-495.52185997,0.00027397,5]
[364872794,1749283856063,-480.0,0.00027397,5]
[364872795,1749283856073,-480.0,0.00027397,5]
[364872796,1749283856082,-1325.93,0.00027397,5]
[364872797,1749283856092,-6018.65,0.00027397,5]
[364872798,1749283856102,-482.77231864,0.00027397,5]
[364872799,1749283856112,-480.0,0.00027397,5]
[364872800,1749283856121,-498.55337311,0.00027397,5]
[364872801,1749283856132,-480.0,0.00027397,5]
[364872802,1749283856141,-480.0,0.00027397,5]
[364872803,1749283856151,-480.0,0.00027397,5]
[364872804,1749283856160,-622.41,0.00027397,5]
[364872805,1749283856169,-480.0,0.00027397,5]
[364872806,1749283856178,-480.0,0.00027397,5]
[364872807,1749283856187,-477.12670696,0.00027397,5]
[364872808,1749283856198,-480.0,0.00027397,5]
[364872809,1749283856207,-1072.0,0.00027397,5]
[364872810,1749283856217,-2212.47,0.00027397,5]
[364872811,1749283856227,-2212.47,0.00027397,5]
[364872812,1749283856236,-2212.47,0.00027397,5]
[364872813,1749283856246,-480.0,0.00027397,5]
[364872814,1749283856255,-2212.47,0.00027397,5]
[364872815,1749283856265,-2212.47,0.00027397,5]
[364872816,1749283856274,-480.0,0.00027397,5]
[364872817,1749283856283,-1345.91,0.00027397,5]
[364872818,1749283856293,-2212.47,0.00027397,5]
[364872819,1749283856302,-2212.47,0.00027397,5]
[364872820,1749283856312,-2212.47,0.00027397,5]
[364872821,1749283856327,-480.0,0.00027397,2]
[364872822,1749283856337,-480.0,0.00027397,5]
[364872823,1749283856347,-480.0,0.00027397,5]
[364872824,1749283856357,-965.47,0.00027397,5]
[364872825,1749283856367,-480.0,0.00027397,5]
[364872826,1749283856376,-2147.53,0.00027397,2]
[364872827,1749283856391,-498.7067146,0.00027397,5]
[364872828,1749283856403,-585.0452618,0.00027397,5]
[364872829,1749283856412,-480.0,0.00027397,5]
[364872830,1749283856422,-480.0,0.00027397,5]
[364872831,1749283856432,-492.2470995,0.00027397,5]
[364872832,1749283856441,-1671.91,0.00027397,5]
[364872833,1749283856451,-480.0,0.00027397,5]
[364872834,1749283856460,-2644.51,0.00027397,5]
[364872835,1749283856470,-3264.83,0.00027397,5]
[364872836,1749283856480,-2010.42,0.00027397,5]
[364872837,1749283856490,-480.0,0.00027397,5]
[364872838,1749283856508,-504.49048182,0.00027397,5]
[364872839,1749283856519,-480.0,0.00027397,5]
[364872840,1749283856528,-481.83381128,0.00027397,5]
[364872841,1749283856538,-1546.17,0.00027397,5]
[364872842,1749283856547,-480.0,0.00027397,5]
[364872843,1749283856557,-794.82,0.00027397,2]
[364872844,1749283856567,-480.0,0.00027397,5]
[364872845,1749283856577,-2124.13,0.00027397,5]
[364872846,1749283856588,-794.82,0.00027397,2]
[364872847,1749283856598,-794.82,0.00027397,2]
[364872848,1749283856608,-480.0,0.00027397,5]
[364872849,1749283856618,-3803.92,0.00027397,5]
[364872850,1749283856629,-794.82,0.00027397,2]
[364872851,1749283856639,-484.56024671,0.00027397,5]
[364872852,1749283856649,-3035.15,0.00027397,5]
[364872853,1749283856659,-794.82,0.00027397,2]
[364872854,1749283856669,-794.82,0.00027397,2]
[364872855,1749283856680,-6110.32,0.00027397,5]
[364872856,1749283856690,-485.346493,0.00027397,5]
[364872857,1749283856700,-1458.57,0.00027397,5]
[364872858,1749283856711,-882.95,0.00027397,5]
[364872859,1749283856721,-1003.3,0.00027397,5]
[364872860,1749283856732,-480.0,0.00027397,5]
[364872861,1749283856742,-355.83070683,0.00027397,5]
[364872862,1749283856752,-480.0,0.00027397,5]
[364872863,1749283856763,-1170.49,0.00027397,5]
[364872864,1749283856773,-464.75531448,0.00027397,5]
[364872865,1749283856784,-480.0,0.00027397,2]
[364872866,1749283856794,-480.0,0.00027397,5]
[364872867,1749283856804,-150.0,0.00027397,2]
[364872868,1749283856814,-3633.12,0.00027397,5]
[364872869,1749283856824,-1000.0,0.00027397,5]
[364872870,1749283856834,-150.0,0.00027397,2]
[364872871,1749283856845,-491.9551073,0.00027397,5]
[364872872,1749283856856,-1513.66,0.00027397,5]
[364872873,1749283856866,-486.81693847,0.00027397,5]
[364872874,1749283856877,-480.0,0.00027397,5]
[364872875,1749283856888,-596.66,0.00027397,5]
[364872876,1749283856898,-1093.12,0.00027397,5]
[364872877,1749283856908,-460.00088065,0.00027397,5]
[364872878,1749283856919,-492.26232599,0.00027397,5]
[364872879,1749283856930,-480.0,0.00027397,5]
[364872880,1749283856940,-814.18,0.00027397,5]
[364872881,1749283856950,-480.0,0.00027397,5]
[364872882,1749283856961,-480.0,0.00027397,5]
[364872883,1749283856970,-2008.91,0.00027397,5]
[364872884,1749283856980,-426.52362575,0.00027397,5]
[364872885,1749283856991,-480.0,0.00027397,5]
[364872886,1749283857001,-495.78,0.00027397,5]
[364872887,1749283857011,-480.0,0.00027397,5]
[364872888,1749283857022,-802.83,0.00027397,5]
[364872889,1749283857035,-480.0,0.00027397,5]
[364872890,1749283857046,-2029.78,0.00027397,5]
[364872891,1749283857057,-2623.17,0.00027397,5]
[364872892,1749283857071,-480.0,0.00027397,5]
[364872893,1749283857082,-480.0,0.00027397,5]
[364872894,1749283857096,-420.0,0.00027397,5]
[364872895,1749283857106,-480.0,0.00027397,5]
[364872896,1749283857121,-480.0,0.00027397,5]
[364872897,1749283857134,-5571.7,0.00027397,5]
[364872898,1749283857144,-480.0,0.00027397,5]
[364872899,1749283857154,-480.0,0.00027397,5]
[364872900,1749283857165,-480.0,0.00027397,5]
[364872901,1749283857175,-480.0,0.00027397,5]
[364872902,1749283857186,-749.45,0.00027397,5]
[364872903,1749283857197,-2770.74,0.00027397,5]
[364872904,1749283857207,-524.15897064,0.00027397,5]
[364872905,1749283857218,-855.47,0.00027397,5]
[364872906,1749283857228,-480.0,0.00027397,5]
[364872907,1749283857238,-480.0,0.00027397,5]
[364872908,1749283857249,-480.0,0.00027397,5]
[364872909,1749283857260,-1941.16,0.00027397,5]
[364872910,1749283857272,-1529.93,0.00027397,5]
[364872911,1749283857283,-734.71,0.00027397,5]
[364872912,1749283857294,-4023.49,0.00027397,5]
[364872913,1749283857305,-480.0,0.00027397,5]
[364872914,1749283857316,-480.0,0.00027397,5]
[364872915,1749283857328,-495.25761186,0.00027397,5]
[364872916,1749283857338,-480.0,0.00027397,5]
[364872917,1749283857348,-480.0,0.00027397,5]
[364872918,1749283857358,-480.0,0.00027397,5]
[364872919,1749283857369,-480.0,0.00027397,5]
[364872920,1749283857379,-1675.33,0.00027397,5]
[364872921,1749283857390,-525.98,0.00027397,5]
[364872922,1749283857401,-1753.76,0.00027397,5]
[364872923,1749283857412,-967.54,0.00027397,5]
[364872924,1749283857422,-480.0,0.00027397,5]
[364872925,1749283857432,-480.0,0.00027397,5]
[364872926,1749283857443,-480.0,0.00027397,5]
[364872927,1749283857454,-480.0,0.00027397,5]
[364872928,1749283857465,-480.0,0.00027397,5]
[364872929,1749283857475,-11876.34,0.00027397,5]
[364872930,1749283857486,-480.0,0.00027397,5]
[364872931,1749283857508,-1453.1,0.00027397,5]
[364872932,1749283857522,-480.0,0.00027397,5]
[364872933,1749283857534,-480.0,0.00027397,5]
[364872934,1749283857544,-683.94,0.00027397,5]
[364872935,1749283857556,-483.00812327,0.00027397,5]
[364872936,1749283857567,-482.818438,0.00027397,5]
[364872937,1749283857578,-480.0,0.00027397,5]
[364872938,1749283857590,-480.0,0.00027397,5]
[364872939,1749283857602,-1122.69,0.00027397,5]
[364872940,1749283857614,-10865.99,0.00027397,5]
[364872941,1749283857625,-276.17416622,0.00027397,5]
[364872942,1749283857636,-480.0,0.00027397,5]
[364872943,1749283857647,-480.0,0.00027397,5]
[364872944,1749283857659,-427.3457674,0.00027397,5]
[364872945,1749283857670,-427.14605506,0.00027397,5]
[364872946,1749283857682,-480.0,0.00027397,5]
[364872947,1749283857696,-480.0,0.00027397,5]
[364872948,1749283857707,-871.56,0.00027397,5]
[364872949,1749283857719,-1581.96,0.00027397,5]
[364872950,1749283857730,-466.2013567,0.00027397,5]
[364872951,1749283857741,-500.0,0.00027397,5]
[364872952,1749283857752,-480.0,0.00027397,5]
[364872953,1749283857763,-500.0,0.00027397,5]
[364872954,1749283857775,-501.57789469,0.00027397,5]
[364872955,1749283857786,-813.01,0.00027397,5]
[364872956,1749283857798,-480.0,0.00027397,5]
[364872957,1749283857809,-431.98009251,0.00027397,5]
[364872958,1749283857819,-480.0,0.00027397,5]
[364872959,1749283857831,-480.0,0.00027397,5]
[364872960,1749283857843,-480.0,0.00027397,5]
[364872961,1749283857854,-480.0,0.00027397,5]
[364872962,1749283857865,-480.0,0.00027397,5]
[364872963,1749283857877,-2000.65,0.00027397,5]
[364872964,1749283857888,-2227.22,0.00027397,5]
[364872965,1749283857899,-1731.59,0.00027397,5]
[364872966,1749283857910,-480.0,0.00027397,5]
[364872967,1749283857921,-435.19553468,0.00027397,5]
[364872968,1749283857938,-2403.78,0.00027397,5]
[364872969,1749283857949,-480.0,0.00027397,5]
[364872970,1749283857961,-1327.04,0.00027397,5]
[364872971,1749283857972,-248.24710004,0.00027397,5]
[364872972,1749283857983,-480.79945134,0.00027397,5]
[364872973,1749283857994,-480.0,0.00027397,5]
[364872974,1749283858005,-500.0,0.00027397,2]
[364872975,1749283858017,-747.9,0.00027397,5]
[364872976,1749283858029,-480.0,0.00027397,5]
[364872977,1749283858041,-500.0,0.00027397,5]
[364872978,1749283858053,-500.0,0.00027397,5]
[364872979,1749283858064,-575.71,0.00027397,5]
[364872980,1749283858076,-500.0,0.00027397,5]
[364872981,1749283858087,-500.0,0.00027397,5]
[364872982,1749283858099,-480.0,0.00027397,5]
[364872983,1749283858111,-500.0,0.00027397,5]
[364872984,1749283858122,-500.0,0.00027397,5]
[364872985,1749283858133,-1386.31,0.00027397,5]
[364872986,1749283858144,-480.0,0.00027397,5]
[364872987,1749283858156,-492.12,0.00027397,5]
[364872988,1749283858167,-480.0,0.00027397,5]
[364872989,1749283858179,-480.0,0.00027397,5]
[364872990,1749283858191,-480.0,0.00027397,5]
[364872991,1749283858203,-480.0,0.00027397,5]
[364872992,1749283858214,-480.0,0.00027397,5]
[364872993,1749283858226,-4322.98,0.00027397,5]
[364872994,1749283858237,-480.0,0.00027397,5]
[364872995,1749283858248,-494.08,0.00027397,5]
[364872996,1749283858260,-518.65,0.00027397,5]
[364872997,1749283858271,-480.0,0.00027397,5]
[364872998,1749283858282,-493.61106545,0.00027397,5]
[364872999,1749283858293,-1066.78,0.00027397,5]
[364873000,1749283858304,-480.0,0.00027397,5]
[364873001,1749283858317,-487.28168083,0.00027397,5]
[364873002,1749283858330,-1078.23,0.00027397,5]
[364873003,1749283858341,-496.88810002,0.00027397,5]
[364873004,1749283858354,-499.42,0.00027397,5]
[364873005,1749283858371,-697.95,0.00027397,5]
[364873006,1749283858383,-543.19172869,0.00027397,5]
[364873007,1749283858395,-428.43001528,0.00027397,5]
[364873008,1749283858407,-485.72205612,0.00027397,5]
[364873009,1749283858418,-957.28,0.00027397,5]
[364873010,1749283858429,-425.07826374,0.00027397,5]
[364873011,1749283858440,-871.81,0.00027397,5]